fUSD/lending_fUSD_20250105
["ID","MTS","AMOUNT","RATE_DAILY","PERIOD"]
[347754951,1736094644830,-152.483732,8.767e-05,2]
[347754952,1736094644839,-3227.6,8.767e-05,2]
[347754953,1736094644848,-716.72,8.767e-05,2]
[347754954,1736094644858,-685.49,8.767e-05,2]
[347754955,1736094644867,-812.36,8.767e-05,2]
[347754956,1736094644876,-2219.13,8.767e-05,2]
[347754957,1736094644886,-1820.78,8.767e-05,2]
[347754958,1736094644895,-574.8,8.767e-05,2]
[347754959,1736094644905,-1688.51,8.767e-05,2]
[347754960,1736094644915,-826.26,8.767e-05,2]
[347754961,1736094644925,-1052.05,8.767e-05,2]
[347754962,1736094644935,-3518.04,8.767e-05,2]
[347754963,1736094644944,-1016.28,8.767e-05,2]
[347754964,1736094644954,-659.66,8.767e-05,2]
[347754965,1736094644964,-500.0,8.767e-05,2]
[347754966,1736094644973,-500.0,8.767e-05,2]
[347754967,1736094644982,-500.0,8.767e-05,2]
[347754968,1736094644992,-588.33,8.767e-05,2]
[347754969,1736094645001,-379.76588204,8.767e-05,2]
[347754970,1736094645011,-2262.5,8.767e-05,2]
[347754971,1736094645019,-753.31,8.767e-05,2]
[347754972,1736094645029,-500.0,8.767e-05,2]
[347754973,1736094645039,-6438.35,8.767e-05,2]
[347754974,1736094645049,-500.0,8.767e-05,2]
[347754975,1736094645058,-913.17,8.767e-05,2]
[347754976,1736094645068,-150.133036,8.767e-05,2]
[347754977,1736094645079,-874.96,8.767e-05,2]
[347754978,1736094645088,-1116.37,8.767e-05,2]
[347754979,1736094645099,-919.19,8.767e-05,2]
[347754980,1736094645108,-500.0,8.767e-05,2]
[347754981,1736094645117,-648.72,8.767e-05,2]
[347754982,1736094645126,-1766.84,8.767e-05,2]
[347754983,1736094645135,-758.57,8.767e-05,2]
[347754984,1736094645144,-506.41,8.767e-05,2]
[347754985,1736094645153,-151.072624,8.767e-05,2]
[347754986,1736094645163,-1972.52,8.767e-05,2]
[347754987,1736094645172,-863.83,8.767e-05,2]
[347754988,1736094645182,-500.0,8.767e-05,2]
[347754989,1736094645191,-500.0,8.767e-05,2]
[347754990,1736094645200,-500.0,8.767e-05,2]
[347754991,1736094645210,-962.38,8.767e-05,2]
[347754992,1736094645219,-500.0,8.767e-05,2]
[347754993,1736094645229,-500.0,8.767e-05,2]
[347754994,1736094645238,-850.42,8.767e-05,2]
[347754995,1736094645247,-500.0,8.767e-05,2]
[347754996,1736094645256,-1056.87,8.767e-05,2]
[347754997,1736094645265,-1324.44,8.767e-05,2]
[347754998,1736094645274,-500.0,8.767e-05,2]
[347754999,1736094645283,-1975.91,8.767e-05,2]
[347755000,1736094645292,-500.0,8.767e-05,2]
[347755001,1736094645301,-727.28,8.767e-05,2]
[347755002,1736094645311,-1645.11,8.767e-05,2]
[347755003,1736094645321,-680.78,8.767e-05,2]
[347755004,1736094645330,-2676.27,8.767e-05,2]
[347755005,1736094645340,-500.0,8.767e-05,2]
[347755006,1736094645349,-500.0,8.767e-05,2]
[347755007,1736094645358,-1747.24,8.767e-05,2]
[347755008,1736094645367,-500.0,8.767e-05,2]
[347755009,1736094645376,-840.57,8.767e-05,2]
[347755010,1736094645385,-703.44,8.767e-05,2]
[347755011,1736094645395,-500.0,8.851e-05,2]
[347755012,1736094645405,-300.0,8.96e-05,2]
[347755013,1736094645418,-3034.3955557,9e-05,2]
[347755014,1736094645427,-603.61248577,9.041e-05,2]
[347755015,1736094645438,-500.0,9.041e-05,2]
[347755016,1736094645448,-500.0,9.041e-05,2]
[347755017,1736094645456,-500.0,9.041e-05,2]
[347755018,1736094645465,-500.0,9.041e-05,2]
[347755019,1736094645475,-500.0,9.041e-05,2]
[347755020,1736094645484,-500.0,9.041e-05,2]
[347755021,1736094645493,-500.0,9.041e-05,2]
[347755022,1736094645503,-1230.7,9.041e-05,2]
[347755023,1736094645512,-500.0,9.041e-05,2]
[347755024,1736094645522,-500.0,9.041e-05,2]
[347755025,1736094645531,-599.16,9.041e-05,2]
[347755026,1736094645541,-500.0,9.041e-05,2]
[347755027,1736094645550,-500.0,9.041e-05,2]
[347755028,1736094645560,-500.0,9.041e-05,2]
[347755029,1736094645569,-500.0,9.041e-05,2]
[347755030,1736094645578,-500.0,9.041e-05,2]
[347755031,1736094645587,-500.0,9.041e-05,2]
[347755032,1736094645597,-500.0,9.041e-05,2]
[347755033,1736094645607,-500.0,9.041e-05,2]
[347755034,1736094645616,-500.0,9.041e-05,2]
[347755035,1736094645627,-1808.48,9.041e-05,2]
[347755036,1736094645637,-500.0,9.041e-05,2]
[347755037,1736094645646,-500.0,9.041e-05,2]
[347755038,1736094645656,-500.0,9.041e-05,2]
[347755039,1736094645665,-500.0,9.041e-05,2]
[347755040,1736094645675,-500.0,9.041e-05,2]
[347755041,1736094645684,-500.0,9.041e-05,2]
[347755042,1736094645694,-500.0,9.041e-05,2]
[347755043,1736094645704,-716.91,9.041e-05,2]
[347755044,1736094645713,-500.0,9.041e-05,2]
[347755045,1736094645725,-500.0,9.041e-05,2]
[347755046,1736094645735,-1425.76,9.041e-05,2]
[347755047,1736094645745,-500.0,9.041e-05,2]
[347755048,1736094645758,-1615.98,9.041e-05,2]
[347755049,1736094645770,-500.0,9.041e-05,2]
[347755050,1736094645780,-500.0,9.041e-05,2]
[347755051,1736094645790,-500.0,9.041e-05,2]
[347755052,1736094645799,-500.0,9.041e-05,2]
[347755053,1736094645809,-500.0,9.041e-05,2]
[347755054,1736094645819,-500.0,9.041e-05,2]
[347755055,1736094645828,-2103.76,9.041e-05,2]
[347755056,1736094645838,-548.94,9.041e-05,2]
[347755057,1736094645847,-622.54,9.041e-05,2]
[347755058,1736094645857,-588.68,9.041e-05,2]
[347755059,1736094645866,-856.59,9.041e-05,2]
[347755060,1736094645876,-500.0,9.041e-05,2]
[347755061,1736094645886,-699.56,9.041e-05,2]
[347755062,1736094645895,-500.0,9.041e-05,2]
[347755063,1736094645904,-1746.71,9.041e-05,2]
[347755064,1736094645914,-551.19,9.041e-05,2]
[347755065,1736094645923,-500.0,9.041e-05,2]
[347755066,1736094645932,-742.17,9.041e-05,2]
[347755067,1736094645942,-500.0,9.041e-05,2]
[347755068,1736094645951,-608.14,9.041e-05,2]
[347755069,1736094645961,-558.83,9.041e-05,2]
[347755070,1736094645970,-500.0,9.041e-05,2]
[347755071,1736094645980,-812.77,9.041e-05,2]
[347755072,1736094645989,-569.03,9.041e-05,2]
[347755073,1736094645999,-500.0,9.041e-05,2]
[347755074,1736094646009,-500.0,9.041e-05,2]
[347755075,1736094646019,-500.0,9.041e-05,2]
[347755076,1736094646028,-500.0,9.041e-05,2]
[347755078,1736094646037,-661.71,9.041e-05,2]
[347755080,1736094646047,-696.27,9.041e-05,2]
[347755081,1736094646056,-942.62,9.041e-05,2]
[347755082,1736094646065,-687.79,9.041e-05,2]
[347755083,1736094646075,-261.24363363,9.041e-05,2]
[347755084,1736094646084,-500.0,9.041e-05,2]
[347755085,1736094646095,-556.61,9.041e-05,2]
[347755086,1736094646106,-719.4,9.041e-05,2]
[347755087,1736094646115,-631.65,9.041e-05,2]
[347755088,1736094646126,-832.23,9.041e-05,2]
[347755089,1736094646136,-5015.81,9.041e-05,2]
[347755090,1736094646146,-1675.1,9.041e-05,2]
[347755091,1736094646156,-677.54,9.041e-05,2]
[347755092,1736094646166,-543.04,9.041e-05,2]
[347755093,1736094646176,-500.0,9.041e-05,2]
[347755094,1736094646189,-627.27,9.041e-05,2]
[347755095,1736094646198,-500.0,9.041e-05,2]
[347755096,1736094646208,-1161.33,9.041e-05,2]
[347755097,1736094646285,-1050.4,9.041e-05,2]
[347755098,1736094646296,-500.0,9.041e-05,2]
[347755099,1736094646305,-500.0,9.041e-05,2]
[347755100,1736094646315,-500.0,9.041e-05,2]
[347755101,1736094646324,-724.87,9.041e-05,2]
[347755102,1736094646333,-500.0,9.041e-05,2]
[347755103,1736094646344,-500.0,9.041e-05,2]
[347755104,1736094646354,-631.04,9.041e-05,2]
[347755105,1736094646364,-500.0,9.041e-05,2]
[347755106,1736094646373,-1763.27,9.041e-05,2]
[347755107,1736094646382,-594.95,9.041e-05,2]
[347755108,1736094646391,-1113.55,9.041e-05,2]
[347755109,1736094646401,-500.0,9.041e-05,2]
[347755110,1736094646415,-500.0,9.041e-05,2]
[347755111,1736094646424,-752.27,9.041e-05,2]
[347755112,1736094646434,-500.0,9.041e-05,2]
[347755113,1736094646444,-500.0,9.041e-05,2]
[347755114,1736094646454,-714.85,9.041e-05,2]
[347755115,1736094646464,-816.25,9.041e-05,2]
[347755116,1736094646474,-620.8,9.041e-05,2]
[347755117,1736094646485,-500.0,9.041e-05,2]
[347755118,1736094646495,-621.01,9.041e-05,2]
[347755119,1736094646505,-500.0,9.041e-05,2]
[347755120,1736094646514,-500.0,9.041e-05,2]
[347755121,1736094646525,-500.0,9.041e-05,2]
[347755122,1736094646534,-541.62,9.041e-05,2]
[347755123,1736094646543,-500.0,9.041e-05,2]
[347755124,1736094646552,-601.13,9.041e-05,2]
[347755125,1736094646561,-738.48,9.041e-05,2]
[347755126,1736094646572,-500.0,9.041e-05,2]
[347755127,1736094646581,-1683.47,9.041e-05,2]
[347755128,1736094646590,-500.0,9.041e-05,2]
[347755129,1736094646600,-500.0,9.041e-05,2]
[347755130,1736094646609,-3134.03,9.041e-05,2]
[347755131,1736094646618,-745.35,9.041e-05,2]
[347755132,1736094646628,-836.0,9.041e-05,2]
[347755133,1736094646637,-736.47,9.041e-05,2]
[347755134,1736094646646,-500.0,9.041e-05,2]
[347755135,1736094646657,-154.53437873,9.041e-05,2]
[347755136,1736094646666,-580.42,9.041e-05,2]
[347755137,1736094646675,-500.0,9.041e-05,2]
[347755138,1736094646683,-500.0,9.041e-05,2]
[347755139,1736094646693,-500.0,9.041e-05,2]
[347755140,1736094646702,-500.0,9.041e-05,2]
[347755141,1736094646711,-500.0,9.041e-05,2]
[347755142,1736094646721,-520.75,9.041e-05,2]
[347755143,1736094646730,-500.0,9.041e-05,2]
[347755144,1736094646739,-500.0,9.041e-05,2]
[347755145,1736094646748,-1689.29,9.041e-05,2]
[347755146,1736094646757,-589.8,9.041e-05,2]
[347755147,1736094646767,-683.29,9.041e-05,2]
[347755148,1736094646776,-500.0,9.041e-05,2]
[347755149,1736094646786,-1085.9,9.041e-05,2]
[347755150,1736094646795,-500.0,9.041e-05,2]
[347755151,1736094646804,-500.0,9.041e-05,2]
[347755152,1736094646813,-1035.34,9.041e-05,2]
[347755153,1736094646822,-741.9,9.041e-05,2]
[347755154,1736094646832,-500.0,9.041e-05,2]
[347755155,1736094646841,-500.0,9.041e-05,2]
[347755156,1736094646850,-500.0,9.041e-05,2]
[347755157,1736094646859,-500.0,9.041e-05,2]
[347755158,1736094646868,-500.0,9.041e-05,2]
[347755159,1736094646878,-500.0,9.041e-05,2]
[347755160,1736094646887,-1834.08,9.041e-05,2]
[347755161,1736094646898,-500.0,9.041e-05,2]
[347755162,1736094646907,-500.0,9.041e-05,2]
[347755163,1736094646917,-208.75940069,9.041e-05,2]
[347755164,1736094646926,-552.82,9.041e-05,2]
[347755165,1736094646935,-731.46,9.041e-05,2]
[347755166,1736094646943,-904.93,9.041e-05,2]
[347755167,1736094646952,-500.0,9.041e-05,2]
[347755168,1736094646961,-500.0,9.041e-05,2]
[347755169,1736094646969,-557.27,9.041e-05,2]
[347755170,1736094646978,-500.0,9.041e-05,2]
[347755171,1736094646987,-793.93,9.041e-05,2]
[347755172,1736094646995,-500.0,9.041e-05,2]
[347755173,1736094647004,-811.3,9.041e-05,2]
[347755174,1736094647013,-527.7,9.041e-05,2]
[347755175,1736094647022,-500.0,9.041e-05,2]
[347755176,1736094647032,-500.0,9.041e-05,2]
[347755177,1736094647041,-1036.67,9.041e-05,2]
[347755178,1736094647051,-509.44,9.041e-05,2]
[347755179,1736094647060,-500.0,9.041e-05,2]
[347755180,1736094647069,-500.0,9.041e-05,2]
[347755181,1736094647077,-1532.82,9.041e-05,2]
[347755182,1736094647086,-500.0,9.041e-05,2]
[347755183,1736094647095,-500.0,9.041e-05,2]
[347755184,1736094647104,-2813.87,9.041e-05,2]
[347755185,1736094647113,-604.49716216,9.041e-05,2]
[347755186,1736094647122,-453.74269608,9.041e-05,2]
[347755187,1736094647131,-799.48,9.041e-05,2]
[347755188,1736094647140,-605.75,9.041e-05,2]
[347755189,1736094647150,-500.0,9.041e-05,2]
[347755190,1736094647161,-500.0,9.041e-05,2]
[347755191,1736094647172,-2763.67,9.041e-05,2]
[347755192,1736094647182,-659.28,9.041e-05,2]
[347755193,1736094647192,-500.0,9.041e-05,2]
[347755194,1736094647201,-500.0,9.041e-05,2]
[347755195,1736094647210,-500.0,9.041e-05,2]
[347755196,1736094647221,-500.0,9.041e-05,2]
[347755197,1736094647232,-770.84,9.041e-05,2]
[347755198,1736094647241,-589.68,9.041e-05,2]
[347755199,1736094647250,-500.0,9.041e-05,2]
[347755200,1736094647259,-500.0,9.041e-05,2]
[347755201,1736094647268,-500.0,9.041e-05,2]
[347755202,1736094647277,-3068.98,9.041e-05,2]
[347755203,1736094647286,-633.08,9.041e-05,2]
[347755204,1736094647295,-779.8,9.041e-05,2]
[347755205,1736094647304,-1712.37,9.041e-05,2]
[347755206,1736094647313,-964.94,9.041e-05,2]
[347755207,1736094647322,-848.67,9.041e-05,2]
[347755208,1736094647332,-500.0,9.041e-05,2]
[347755209,1736094647341,-500.0,9.041e-05,2]
[347755210,1736094647350,-504.97,9.041e-05,2]
[347755211,1736094647359,-769.22,9.041e-05,2]
[347755212,1736094647368,-500.0,9.041e-05,2]
[347755213,1736094647377,-698.27,9.041e-05,2]
[347755214,1736094647386,-500.0,9.041e-05,2]
[347755215,1736094647395,-800.13,9.041e-05,2]
[347755216,1736094647404,-1626.49,9.041e-05,2]
[347755217,1736094647416,-1071.25,9.041e-05,2]
[347755218,1736094647425,-500.0,9.041e-05,2]
[347755219,1736094647434,-1143.16,9.041e-05,2]
[347755220,1736094647446,-565.51,9.041e-05,2]
[347755221,1736094647456,-972.29,9.041e-05,2]
[347755222,1736094647465,-1044.39,9.041e-05,2]
[347755223,1736094647475,-500.0,9.041e-05,2]
[347755224,1736094647486,-500.18,9.041e-05,2]
[347755225,1736094647495,-508.44,9.041e-05,2]
[347755226,1736094647506,-2154.529193,9.041e-05,2]
[347755227,1736094647515,-500.0,9.041e-05,2]
[347755228,1736094647524,-3065.2,9.041e-05,2]
[347755229,1736094647534,-573.87,9.041e-05,2]
[347755230,1736094647543,-500.0,9.041e-05,2]
[347755231,1736094647552,-160.465046,9.041e-05,2]
[347755232,1736094647561,-585.92,9.041e-05,2]
[347755233,1736094647571,-500.0,9.041e-05,2]
[347755234,1736094647580,-765.52,9.041e-05,2]
[347755235,1736094647589,-640.34,9.041e-05,2]
[347755236,1736094647600,-1291.16,9.041e-05,2]
[347755237,1736094647610,-3836.73,9.041e-05,2]
[347755238,1736094647619,-633.45,9.041e-05,2]
[347755239,1736094647628,-1192.98,9.041e-05,2]
[347755240,1736094647638,-2011.44575,9.041e-05,2]
[347755241,1736094647647,-733.94,9.041e-05,2]
[347755242,1736094647656,-668.19,9.041e-05,2]
[347755243,1736094647665,-722.24,9.041e-05,2]
[347755244,1736094647675,-525.52,9.041e-05,2]
[347755245,1736094647684,-2191.22,9.041e-05,2]
[347755246,1736094647694,-1871.54,9.041e-05,2]
[347755247,1736094647703,-1429.21,9.041e-05,2]
[347755248,1736094647712,-1747.17,9.041e-05,2]
[347755249,1736094647721,-6128.46,9.041e-05,2]
[347755250,1736094647730,-554.84,9.041e-05,2]
[347755251,1736094647739,-813.74,9.041e-05,2]
[347755252,1736094647749,-500.0,9.041e-05,2]
[347755253,1736094647758,-1657.86,9.041e-05,2]
[347755254,1736094647767,-515.2,9.041e-05,2]
[347755255,1736094647776,-3771.13,9.041e-05,2]
[347755256,1736094647785,-500.0,9.041e-05,2]
[347755257,1736094647794,-823.18,9.041e-05,2]
[347755258,1736094647803,-500.0,9.041e-05,2]
[347755259,1736094647813,-902.42,9.041e-05,2]
[347755260,1736094647822,-795.93,9.041e-05,2]
[347755261,1736094647832,-500.0,9.041e-05,2]
[347755262,1736094647842,-710.7,9.041e-05,2]
[347755263,1736094647851,-1012.76,9.041e-05,2]
[347755264,1736094647861,-1433.4,9.041e-05,2]
[347755265,1736094647870,-890.9,9.041e-05,2]
[347755266,1736094647879,-5091.48,9.041e-05,2]
[347755267,1736094647888,-500.0,9.041e-05,2]
[347755268,1736094647897,-1053.35,9.041e-05,2]
[347755269,1736094647907,-4235.77,9.041e-05,2]
[347755270,1736094647916,-158.30937,9.041e-05,2]
[347755271,1736094647925,-992.85,9.041e-05,2]
[347755272,1736094647934,-624.79,9.041e-05,2]
[347755273,1736094647944,-633.76,9.041e-05,2]
[347755274,1736094647953,-578.47,9.041e-05,2]
[347755275,1736094647964,-2200.96,9.041e-05,2]
[347755276,1736094647973,-500.0,9.041e-05,2]
[347755277,1736094647982,-1537.22,9.041e-05,2]
[347755278,1736094647992,-900.08,9.041e-05,2]
[347755279,1736094648001,-163.360118,9.041e-05,2]
[347755280,1736094648010,-1934.39,9.041e-05,2]
[347755281,1736094648019,-498.79468221,9.041e-05,2]
[347755282,1736094648028,-500.0,9.041e-05,2]
[347755283,1736094648037,-1315.15,9.041e-05,2]
[347755284,1736094648047,-546.5,9.041e-05,2]
[347755285,1736094648056,-510.63,9.041e-05,2]
[347755286,1736094648066,-500.0,9.041e-05,2]
[347755287,1736094648075,-748.91,9.041e-05,2]
[347755288,1736094648085,-3147.69,9.041e-05,2]
[347755289,1736094648094,-500.0,9.041e-05,2]
[347755290,1736094648103,-571.68,9.041e-05,2]
[347755291,1736094648112,-500.0,9.041e-05,2]
[347755292,1736094648121,-500.0,9.041e-05,2]
[347755293,1736094648130,-500.0,9.041e-05,2]
[347755294,1736094648140,-857.37,9.041e-05,2]
[347755295,1736094648149,-500.0,9.041e-05,2]
[347755296,1736094648159,-772.45,9.041e-05,2]
[347755297,1736094648170,-2261.04,9.041e-05,2]
[347755298,1736094648179,-1517.49,9.041e-05,2]
[347755299,1736094648189,-574.97,9.041e-05,2]
[347755300,1736094648199,-1136.66,9.041e-05,2]
[347755301,1736094648208,-3679.45,9.041e-05,2]
[347755302,1736094648217,-601.24,9.041e-05,2]
[347755303,1736094648226,-801.92,9.041e-05,2]
[347755304,1736094648235,-500.0,9.041e-05,2]
[347755305,1736094648244,-2296.67,9.041e-05,2]
[347755306,1736094648253,-150.925515,9.041e-05,2]
[347755307,1736094648263,-511.65,9.041e-05,2]
[347755308,1736094648272,-716.67,9.041e-05,2]
[347755309,1736094648281,-500.0,9.041e-05,2]
[347755310,1736094648291,-1000.95,9.041e-05,2]
[347755311,1736094648301,-2823.47,9.041e-05,2]
[347755312,1736094648310,-869.41,9.041e-05,2]
[347755313,1736094648319,-1961.5,9.041e-05,2]
[347755314,1736094648328,-702.57,9.041e-05,2]
[347755315,1736094648337,-1511.92,9.041e-05,2]
[347755316,1736094648347,-608.51248184,9.041e-05,2]
[347755317,1736094648356,-980.35,9.041e-05,2]
[347755318,1736094648365,-1573.26,9.041e-05,2]
[347755319,1736094648375,-716.72,9.041e-05,2]
[347755320,1736094648384,-3227.6,9.041e-05,2]
[347755321,1736094648394,-685.49,9.041e-05,2]
[347755322,1736094648405,-812.36,9.041e-05,2]
[347755323,1736094648417,-2219.13,9.041e-05,2]
[347755324,1736094648427,-1820.78,9.041e-05,2]
[347755325,1736094648436,-574.8,9.041e-05,2]
[347755326,1736094648447,-826.26,9.041e-05,2]
[347755327,1736094648458,-1688.51,9.041e-05,2]
[347755328,1736094648467,-1052.05,9.041e-05,2]
[347755329,1736094648476,-3518.04,9.041e-05,2]
[347755330,1736094648486,-1016.28,9.041e-05,2]
[347755331,1736094648496,-659.66,9.041e-05,2]
[347755332,1736094648505,-500.0,9.041e-05,2]
[347755333,1736094648515,-500.0,9.041e-05,2]
[347755334,1736094648525,-500.0,9.041e-05,2]
[347755335,1736094648535,-588.33,9.041e-05,2]
[347755336,1736094648545,-2262.5,9.041e-05,2]
[347755337,1736094648554,-753.31,9.041e-05,2]
[347755338,1736094648564,-500.0,9.041e-05,2]
[347755339,1736094648573,-6438.35,9.041e-05,2]
[347755340,1736094648583,-500.0,9.041e-05,2]
[347755341,1736094648592,-150.133036,9.041e-05,2]
[347755342,1736094648601,-913.17,9.041e-05,2]
[347755343,1736094648611,-874.96,9.041e-05,2]
[347755344,1736094648620,-1116.37,9.041e-05,2]
[347755345,1736094648630,-919.19,9.041e-05,2]
[347755346,1736094648639,-500.0,9.041e-05,2]
[347755347,1736094648650,-648.72,9.041e-05,2]
[347755348,1736094648660,-1766.84,9.041e-05,2]
[347755349,1736094648669,-758.57,9.041e-05,2]
[347755350,1736094648679,-506.41,9.041e-05,2]
[347755351,1736094648688,-151.072624,9.041e-05,2]
[347755352,1736094648698,-1972.52,9.041e-05,2]
[347755353,1736094648707,-863.83,9.041e-05,2]
[347755354,1736094648717,-500.0,9.041e-05,2]
[347755355,1736094648728,-500.0,9.041e-05,2]
[347755356,1736094648738,-500.0,9.041e-05,2]
[347755357,1736094648748,-962.38,9.041e-05,2]
[347755358,1736094648765,-500.0,9.041e-05,2]
[347755359,1736094648775,-500.0,9.041e-05,2]
[347755360,1736094648784,-850.42,9.041e-05,2]
[347755361,1736094648795,-500.0,9.041e-05,2]
[347755362,1736094648804,-1056.87,9.041e-05,2]
[347755363,1736094648814,-1324.44,9.041e-05,2]
[347755364,1736094648824,-500.0,9.041e-05,2]
[347755365,1736094648833,-500.0,9.041e-05,2]
[347755366,1736094648843,-1975.91,9.041e-05,2]
[347755367,1736094648852,-727.28,9.041e-05,2]
[347755368,1736094648862,-680.78,9.041e-05,2]
[347755369,1736094648872,-1645.11,9.041e-05,2]
[347755370,1736094648882,-2676.27,9.041e-05,2]
[347755371,1736094648892,-500.0,9.041e-05,2]
[347755372,1736094648901,-500.0,9.041e-05,2]
[347755373,1736094648911,-1747.24,9.041e-05,2]
[347755374,1736094648920,-500.0,9.041e-05,2]
[347755375,1736094648928,-840.57,9.041e-05,2]
[347755376,1736094648939,-703.44,9.041e-05,2]
[347755377,1736094648948,-200.0,9.045e-05,2]
[347755378,1736094648958,-500.0,9.072e-05,2]
[347755379,1736094648967,-1700.0,9.072e-05,2]
[347755380,1736094648977,-500.0,9.072e-05,2]
[347755381,1736094648987,-156.995149,9.314e-05,2]
[347755382,1736094648996,-565.23,9.314e-05,2]
[347755383,1736094649006,-1347.13,9.314e-05,2]
[347755384,1736094649016,-2292.04,9.314e-05,2]
[347755385,1736094649025,-1089.62,9.314e-05,2]
[347755386,1736094649035,-1194.71,9.314e-05,2]
[347755387,1736094649044,-3576.39,9.314e-05,2]
[347755388,1736094649054,-4463.52,9.314e-05,2]
[347755389,1736094649062,-519.79,9.314e-05,2]
[347755390,1736094649072,-500.0,9.315e-05,2]
[347755391,1736094649081,-500.0,9.315e-05,2]
[347755392,1736094649091,-500.0,9.315e-05,2]
[347755393,1736094649100,-385.91474624,9.315e-05,2]
[347755394,1736094649110,-500.0,9.315e-05,2]
[347755395,1736094649120,-500.0,9.315e-05,2]
[347755396,1736094649129,-500.0,9.315e-05,2]
[347755397,1736094649139,-1230.7,9.315e-05,2]
[347755398,1736094649148,-500.0,9.315e-05,2]
[347755399,1736094649157,-500.0,9.315e-05,2]
[347755400,1736094649167,-599.16,9.315e-05,2]
[347755401,1736094649176,-500.0,9.315e-05,2]
[347755402,1736094649186,-500.0,9.315e-05,2]
[347755403,1736094649197,-500.0,9.315e-05,2]
[347755404,1736094649207,-500.0,9.315e-05,2]
[347755405,1736094649217,-500.0,9.315e-05,2]
[347755406,1736094649228,-500.0,9.315e-05,2]
[347755407,1736094649238,-500.0,9.315e-05,2]
[347755408,1736094649247,-500.0,9.315e-05,2]
[347755409,1736094649257,-500.0,9.315e-05,2]
[347755410,1736094649266,-1808.48,9.315e-05,2]
[347755411,1736094649275,-500.0,9.315e-05,2]
[347755412,1736094649285,-331.79585934,9.315e-05,2]
[347755413,1736094649294,-500.0,9.315e-05,2]
[347755414,1736094649303,-500.0,9.315e-05,2]
[347755415,1736094649312,-500.0,9.315e-05,2]
[347755416,1736094649322,-500.0,9.315e-05,2]
[347755417,1736094649331,-500.0,9.315e-05,2]
[347755418,1736094649341,-716.91,9.315e-05,2]
[347755419,1736094649351,-500.0,9.315e-05,2]
[347755420,1736094649360,-500.0,9.315e-05,2]
[347755421,1736094649369,-1425.76,9.315e-05,2]
[347755422,1736094649379,-500.0,9.315e-05,2]
[347755423,1736094649388,-1615.98,9.315e-05,2]
[347755424,1736094649398,-500.0,9.315e-05,2]
[347755425,1736094649411,-500.0,9.315e-05,2]
[347755426,1736094649420,-500.0,9.315e-05,2]
[347755427,1736094649430,-500.0,9.315e-05,2]
[347755428,1736094649440,-500.0,9.315e-05,2]
[347755429,1736094649451,-500.0,9.315e-05,2]
[347755430,1736094649461,-2103.76,9.315e-05,2]
[347755431,1736094649471,-548.94,9.315e-05,2]
[347755432,1736094649481,-622.54,9.315e-05,2]
[347755433,1736094649491,-588.68,9.315e-05,2]
[347755434,1736094649501,-856.59,9.315e-05,2]
[347755435,1736094649510,-500.0,9.315e-05,2]
[347755436,1736094649520,-699.56,9.315e-05,2]
[347755437,1736094649529,-500.0,9.315e-05,2]
[347755438,1736094649539,-551.19,9.315e-05,2]
[347755439,1736094649548,-1746.71,9.315e-05,2]
[347755440,1736094649557,-500.0,9.315e-05,2]
[347755441,1736094649567,-742.17,9.315e-05,2]
[347755442,1736094649577,-500.0,9.315e-05,2]
[347755443,1736094649588,-608.14,9.315e-05,2]
[347755444,1736094649598,-558.83,9.315e-05,2]
[347755445,1736094649607,-500.0,9.315e-05,2]
[347755446,1736094649617,-812.77,9.315e-05,2]
[347755447,1736094649626,-569.03,9.315e-05,2]
[347755448,1736094649636,-500.0,9.315e-05,2]
[347755449,1736094649645,-500.0,9.315e-05,2]
[347755450,1736094649654,-500.0,9.315e-05,2]
[347755451,1736094649664,-500.0,9.315e-05,2]
[347755452,1736094649674,-661.71,9.315e-05,2]